fUST/lending_fUST_20250814
["ID","MTS","AMOUNT","RATE_DAILY","PERIOD"]
[379137804,1755155506167,-460.0,0.00018723,2]
[379137805,1755155506176,-460.0,0.00018723,2]
[379137806,1755155506185,-460.0,0.00018723,2]
[379137807,1755155506200,-1120.15,0.00018723,2]
[379137808,1755155506209,-460.0,0.00018723,2]
[379137809,1755155506219,-460.0,0.00018723,2]
[379137810,1755155506229,-792.71,0.00018723,2]
[379137811,1755155506238,-460.0,0.00018724,2]
[379137812,1755155506248,-460.0,0.00018724,2]
[379137813,1755155506257,-460.0,0.00018724,2]
[379137814,1755155506267,-460.0,0.00018724,2]
[379137815,1755155506278,-460.0,0.00018724,2]
[379137816,1755155506287,-460.0,0.00018724,2]
[379137817,1755155506297,-460.0,0.00018724,2]
[379137818,1755155506307,-460.0,0.00018724,2]
[379137819,1755155506317,-460.0,0.00018724,2]
[379137820,1755155506326,-184.99243989,0.00018724,2]
[379137821,1755155506336,-460.0,0.00018724,2]
[379137822,1755155506346,-460.0,0.00018724,2]
[379137823,1755155506355,-460.0,0.00018724,2]
[379137824,1755155506365,-460.0,0.00018724,2]
[379137825,1755155506374,-460.0,0.00018724,2]
[379137826,1755155506383,-478.89,0.00018724,2]
[379137827,1755155506392,-460.0,0.00018724,2]
[379137828,1755155506401,-494.47,0.00018724,2]
[379137829,1755155506411,-1250.11,0.00018724,2]
[379137830,1755155506420,-460.0,0.00018724,2]
[379137831,1755155506429,-523.5,0.00018724,2]
[379137832,1755155506439,-460.0,0.00018724,2]
[379137833,1755155506450,-460.0,0.00018724,2]
[379137834,1755155506459,-560.45,0.00018724,2]
[379137835,1755155506468,-2260.42,0.00018724,2]
[379137836,1755155506477,-460.0,0.00018724,2]
[379137837,1755155506486,-1073.34,0.00018724,2]
[379137838,1755155506496,-533.97,0.00018724,2]
[379137839,1755155506505,-460.0,0.00018724,2]
[379137840,1755155506515,-460.0,0.00018724,2]
[379137841,1755155506524,-460.0,0.00018724,2]
[379137842,1755155506534,-460.0,0.00018724,2]
[379137843,1755155506543,-460.0,0.00018724,2]
[379137844,1755155506552,-794.93,0.00018724,2]
[379137845,1755155506561,-460.0,0.00018724,2]
[379137846,1755155506570,-460.0,0.00018724,2]
[379137847,1755155506580,-460.0,0.00018724,2]
[379137848,1755155506591,-620.72,0.00018724,2]
[379137849,1755155506600,-1090.39,0.00018724,2]
[379137850,1755155506610,-578.8,0.00018724,2]
[379137851,1755155506620,-1078.96,0.00018724,2]
[379137852,1755155506629,-460.0,0.00018724,2]
[379137853,1755155506638,-754.77,0.00018724,2]
[379137854,1755155506648,-460.0,0.00018724,2]
[379137855,1755155506657,-1515.38,0.00018724,2]
[379137856,1755155506666,-463.55183053,0.00018724,2]
[379137857,1755155506676,-662.12,0.00018724,2]
[379137858,1755155506686,-928.86,0.00018724,2]
[379137859,1755155506696,-460.0,0.00018724,2]
[379137860,1755155506706,-460.0,0.00018724,2]
[379137861,1755155506715,-898.83,0.00018724,2]
[379137862,1755155506726,-550.28225915,0.00018724,2]
[379137863,1755155506735,-460.0,0.00018724,2]
[379137864,1755155506744,-396.44742236,0.00018724,2]
[379137865,1755155506753,-460.0,0.00018724,2]
[379137866,1755155506762,-460.0,0.00018724,2]
[379137867,1755155506772,-460.0,0.00018724,2]
[379137868,1755155506781,-500.0,0.00018724,2]
[379137869,1755155506791,-460.0,0.00018724,2]
[379137870,1755155506800,-460.0,0.00018724,2]
[379137871,1755155506810,-826.18,0.00018724,2]
[379137872,1755155506819,-583.5,0.00018724,2]
[379137873,1755155506829,-160.0,0.00018724,2]
[379137874,1755155506838,-460.0,0.00018724,2]
[379137875,1755155506847,-556.98,0.00018724,2]
[379137876,1755155506856,-460.0,0.00018724,2]
[379137877,1755155506865,-460.0,0.00018724,2]
[379137878,1755155506875,-460.0,0.00018724,2]
[379137879,1755155506884,-460.0,0.00018724,2]
[379137880,1755155506894,-460.0,0.00018724,2]
[379137881,1755155506903,-466.82770987,0.00018724,2]
[379137882,1755155506912,-875.16,0.00018724,2]
[379137883,1755155506921,-460.0,0.00018724,2]
[379137884,1755155506931,-510.15278599,0.00018724,2]
[379137885,1755155506940,-1311.61,0.00018724,2]
[379137886,1755155506951,-461.66,0.00018724,2]
[379137887,1755155506961,-460.0,0.00018724,2]
[379137888,1755155506969,-460.0,0.00018724,2]
[379137889,1755155506979,-460.0,0.00018724,2]
[379137890,1755155506988,-460.0,0.00018724,2]
[379137891,1755155506997,-460.0,0.00018724,2]
[379137892,1755155507006,-1278.82,0.00018724,2]
[379137893,1755155507015,-460.0,0.00018724,2]
[379137894,1755155507025,-1576.09,0.00018724,2]
[379137895,1755155507034,-170.47586165,0.00018724,2]
[379137896,1755155507044,-460.0,0.00018724,2]
[379137897,1755155507058,-1114.02,0.00018724,2]
[379137898,1755155507079,-460.0,0.00018724,2]
[379137899,1755155507087,-460.0,0.00018724,2]
[379137900,1755155507097,-549.88,0.00018724,2]
[379137901,1755155507106,-460.0,0.00018724,2]
[379137902,1755155507115,-996.06,0.00018724,2]
[379137903,1755155507125,-869.96,0.00018724,2]
[379137904,1755155507135,-214.33755443,0.00018725,2]
[379137905,1755155507144,-460.0,0.00018725,2]
[379137906,1755155507303,-1172.05,0.00018725,2]
[379137907,1755155507313,-1089.76,0.00018725,2]
[379137908,1755155507322,-930.96,0.00018725,2]
[379137909,1755155507331,-3351.93,0.00018725,2]
[379137910,1755155507340,-2473.07,0.00018725,2]
[379137911,1755155507350,-632.41,0.00018725,2]
[379137912,1755155507359,-460.0,0.00018725,2]
[379137913,1755155507369,-855.92,0.00018725,2]
[379137914,1755155507378,-3530.91,0.00018725,2]
[379137915,1755155507387,-460.0,0.00018725,2]
[379137916,1755155507396,-460.0,0.00018726,2]
[379137917,1755155507405,-492.38,0.00018726,2]
[379137918,1755155507414,-460.0,0.00018726,2]
[379137919,1755155507423,-460.0,0.00018726,2]
[379137920,1755155507433,-605.01,0.00018726,2]
[379137921,1755155507442,-460.0,0.00018726,2]
[379137922,1755155507453,-460.0,0.00018726,2]
[379137923,1755155507462,-839.93,0.00018726,2]
[379137924,1755155507471,-460.0,0.00018726,2]
[379137925,1755155507481,-921.14,0.00018726,2]
[379137926,1755155507490,-460.0,0.00018726,2]
[379137927,1755155507500,-158.38142263,0.00018726,2]
[379137928,1755155507509,-460.0,0.00018726,2]
[379137929,1755155507518,-460.0,0.00018726,2]
[379137930,1755155507528,-460.0,0.00018726,2]
[379137931,1755155507537,-460.0,0.00018726,2]
[379137932,1755155507546,-460.0,0.00018726,2]
[379137933,1755155507555,-498.38,0.00018726,2]
[379137934,1755155507568,-460.0,0.00018726,2]
[379137935,1755155507577,-460.0,0.00018726,2]
[379137936,1755155507586,-460.0,0.00018726,2]
[379137937,1755155507595,-460.0,0.00018726,2]
[379137938,1755155507605,-460.0,0.00018726,2]
[379137939,1755155507614,-460.0,0.00018726,2]
[379137940,1755155507623,-460.0,0.00018726,2]
[379137941,1755155507632,-460.0,0.00018726,2]
[379137942,1755155507641,-460.0,0.00018726,2]
[379137943,1755155507651,-460.0,0.00018726,2]
[379137944,1755155507659,-460.0,0.00018726,2]
[379137945,1755155507669,-460.0,0.00018726,2]
[379137946,1755155507678,-465.86037413,0.00018726,2]
[379137947,1755155507687,-460.0,0.00018726,2]
[379137948,1755155507700,-460.0,0.00018726,2]
[379137949,1755155507709,-460.0,0.00018726,2]
[379137950,1755155507718,-460.0,0.00018726,2]
[379137951,1755155507728,-460.0,0.00018726,2]
[379137952,1755155507737,-460.0,0.00018726,2]
[379137953,1755155507747,-549.48,0.00018726,2]
[379137954,1755155507765,-460.0,0.00018726,2]
[379137955,1755155507774,-586.46,0.00018726,2]
[379137956,1755155507784,-489.26,0.00018726,2]
[379137957,1755155507793,-553.08840221,0.00018726,2]
[379137958,1755155507803,-437.57456975,0.00018726,2]
[379137959,1755155507811,-460.0,0.00018726,2]
[379137960,1755155507820,-460.0,0.00018726,2]
[379137961,1755155507830,-980.35,0.00018726,2]
[379137962,1755155507839,-183.24612008,0.00018726,2]
[379137963,1755155507848,-151.0,0.00018726,2]
[379137964,1755155507858,-460.0,0.00018726,2]
[379137965,1755155507875,-460.0,0.00018726,2]
[379137966,1755155507885,-460.0,0.00018726,2]
[379137967,1755155507895,-279.69478697,0.00018726,2]
[379137968,1755155507904,-460.0,0.00018726,2]
[379137969,1755155507914,-151.0,0.00018726,2]
[379137970,1755155507923,-194.68703,0.00018726,2]
[379137971,1755155507932,-538.88,0.00018726,2]
[379137972,1755155507942,-460.0,0.00018726,2]
[379137973,1755155507953,-460.0,0.00018726,2]
[379137974,1755155507962,-460.0,0.00018726,2]
[379137975,1755155507971,-460.0,0.00018726,2]
[379137976,1755155507980,-469.8021579,0.00018726,2]
[379137977,1755155507990,-460.0,0.00018726,2]
[379137978,1755155507999,-460.0,0.00018726,2]
[379137979,1755155508009,-460.0,0.00018726,2]
[379137980,1755155508018,-460.0,0.00018726,2]
[379137981,1755155508028,-542.09,0.00018726,2]
[379137982,1755155508037,-460.0,0.00018726,2]
[379137983,1755155508046,-899.7,0.00018726,2]
[379137984,1755155508055,-151.0,0.00018729,2]
[379137985,1755155508066,-223.692644,0.00018729,2]
[379137986,1755155508076,-151.0,0.00018729,2]
[379137987,1755155508086,-237.222776,0.00018729,2]
[379137988,1755155508097,-237.222776,0.00018729,2]
[379137989,1755155508107,-151.0,0.00018729,2]
[379137990,1755155508116,-151.0,0.00018729,2]
[379137991,1755155508126,-151.0,0.00018729,2]
[379137992,1755155508135,-1198.26,0.00018729,2]
[379137993,1755155508145,-648.44,0.00018729,2]
[379137994,1755155508154,-13058.9,0.00018729,2]
[379137995,1755155508164,-13877.95,0.00018729,2]
[379137996,1755155508174,-1352.01,0.00018729,2]
[379137997,1755155508184,-3386.18,0.00018729,2]
[379137998,1755155508197,-1449.54,0.00018729,2]
[379137999,1755155508207,-9771.2,0.00018729,2]
[379138000,1755155508217,-1585.28,0.00018729,2]
[379138001,1755155508227,-151.0,0.0001873,2]
[379138002,1755155508236,-151.0,0.0001873,2]
[379138003,1755155508246,-151.0,0.0001873,2]
[379138004,1755155508256,-151.0,0.00018731,2]
[379138005,1755155508266,-460.0,0.00018731,2]
[379138006,1755155508275,-460.0,0.00018731,2]
[379138007,1755155508285,-654.67,0.00018731,2]
[379138008,1755155508294,-460.0,0.00018731,2]
[379138009,1755155508304,-460.0,0.00018731,2]
[379138010,1755155508313,-473.47,0.00018731,2]
[379138011,1755155508322,-513.09504681,0.00018731,2]
[379138012,1755155508331,-362.48534818,0.00018731,2]
[379138013,1755155508341,-830.36,0.00018731,2]
[379138014,1755155508351,-637.98,0.00018731,2]
[379138015,1755155508360,-460.0,0.00018731,2]
[379138016,1755155508369,-460.0,0.00018731,2]
[379138017,1755155508379,-460.0,0.00018731,2]
[379138018,1755155508388,-628.04,0.00018731,2]
[379138019,1755155508398,-460.0,0.00018731,2]
[379138020,1755155508407,-680.67,0.00018731,2]
[379138021,1755155508416,-460.0,0.00018731,2]
[379138022,1755155508426,-460.0,0.00018731,2]
[379138023,1755155508437,-460.0,0.00018731,2]
[379138024,1755155508447,-460.0,0.00018731,2]
[379138025,1755155508456,-460.0,0.00018731,2]
[379138026,1755155508466,-460.0,0.00018731,2]
[379138027,1755155508476,-539.04,0.00018731,2]
[379138028,1755155508485,-531.72,0.00018731,2]
[379138029,1755155508495,-460.0,0.00018731,2]
[379138030,1755155508504,-151.0,0.00018732,2]
[379138031,1755155508514,-151.0,0.00018732,2]
[379138032,1755155508524,-151.0,0.00018733,2]
[379138033,1755155508533,-416.81148,0.00018733,2]
[379138034,1755155508543,-416.81148,0.00018733,2]
[379138035,1755155508552,-460.0,0.00018733,2]
[379138036,1755155508561,-552.41,0.00018733,2]
[379138037,1755155508571,-460.0,0.00018733,2]
[379138038,1755155508581,-460.0,0.00018733,2]
[379138039,1755155508590,-639.23,0.00018733,2]
[379138040,1755155508599,-460.0,0.00018733,2]
[379138041,1755155508609,-1070.12,0.00018733,2]
[379138042,1755155508618,-460.0,0.00018733,2]
[379138043,1755155508627,-460.0,0.00018733,2]
[379138044,1755155508636,-460.0,0.00018733,2]
[379138045,1755155508646,-460.0,0.00018733,2]
[379138046,1755155508655,-151.0,0.00018733,2]
[379138047,1755155508664,-151.0,0.00018733,2]
[379138048,1755155508674,-460.0,0.00018733,2]
[379138049,1755155508683,-460.0,0.00018733,2]
[379138050,1755155508693,-460.0,0.00018733,2]
[379138051,1755155508704,-237.222776,0.00018733,2]
[379138052,1755155508714,-237.222776,0.00018733,2]
[379138053,1755155508723,-460.0,0.00018733,2]
[379138054,1755155508733,-460.0,0.00018733,2]
[379138055,1755155508742,-460.0,0.00018733,2]
[379138056,1755155508752,-460.0,0.00018733,2]
[379138057,1755155508761,-151.0,0.00018735,2]
[379138058,1755155508770,-151.0,0.00018735,2]
[379138059,1755155508780,-416.81148,0.00018735,2]
[379138060,1755155508790,-416.81148,0.00018735,2]
[379138061,1755155508800,-800.0,0.00018746,2]
[379138062,1755155508809,-499.0,0.00018747,2]
[379138063,1755155508818,-406.906,0.00018751,2]
[379138064,1755155508827,-506.95485774,0.00018773,2]
[379138065,1755155508836,-500.0,0.00018773,2]
[379138066,1755155508845,-500.0,0.00018773,2]
[379138067,1755155508854,-500.0,0.00018773,2]
[379138068,1755155508864,-500.0,0.00018773,2]
[379138069,1755155508873,-502.18903041,0.00018773,2]
[379138070,1755155508882,-500.0,0.00018773,2]
[379138071,1755155508891,-501.1838426,0.00018773,2]
[379138072,1755155508901,-502.68911611,0.00018773,2]
[379138073,1755155508911,-151.0,0.00018773,2]
[379138074,1755155508920,-151.0,0.000188,2]
[379138075,1755155508929,-806.29414645,0.00018808,2]
[379138076,1755155508938,-499.0,0.00018813,2]
[379138077,1755155508948,-151.35984124,0.00018864,2]
[379138078,1755155508957,-151.39053355,0.00018864,2]
[379138079,1755155508966,-151.0,0.00018864,2]
[379138080,1755155508975,-151.0,0.00018864,2]
[379138081,1755155508985,-151.0,0.00018864,2]
[379138082,1755155508994,-151.0,0.00018864,2]
[379138083,1755155509004,-262.92559148,0.00018864,2]
[379138084,1755155509013,-151.0,0.00018864,2]
[379138085,1755155509023,-151.0,0.00018864,2]
[379138086,1755155509033,-151.0,0.00018864,2]
[379138087,1755155509043,-151.0,0.00018864,2]
[379138088,1755155509052,-283.66218537,0.00018864,2]
[379138089,1755155509062,-151.0,0.00018864,2]
[379138090,1755155509071,-151.0,0.00018864,2]
[379138091,1755155509081,-202.84673891,0.00018864,2]
[379138092,1755155509091,-151.0,0.00018864,2]
[379138093,1755155509101,-185.64054872,0.00018864,2]
[379138094,1755155509112,-151.0,0.00018864,2]
[379138095,1755155509122,-151.0,0.00018864,2]
[379138096,1755155509132,-151.0,0.00018864,2]
[379138097,1755155509142,-151.0,0.00018864,2]
[379138098,1755155509152,-2000.0,0.00018876,2]
[379138099,1755155509162,-499.0,0.00018884,2]
[379138100,1755155509172,-499.0,0.00018891,2]
[379138101,1755155509182,-800.0,0.00018891,2]
[379138102,1755155509193,-800.0,0.00018899,2]
[379138103,1755155509205,-151.0,0.000189,2]
[379138104,1755155509215,-972.8844923,0.000189,2]
[379138105,1755155509224,-499.0,0.00018926,2]
[379138106,1755155509236,-499.0,0.00018928,2]
[379138107,1755155509246,-800.0,0.00018938,2]
[379138108,1755155509256,-250.0,0.00018991,2]
[379138109,1755155509265,-250.0,0.00018991,2]
[379138110,1755155509276,-537.3,0.00018996,2]
[379138111,1755155509287,-962.42,0.00018996,2]
[379138112,1755155509296,-3717.24,0.00018996,2]
[379138113,1755155509306,-1847.26,0.00018996,2]
[379138114,1755155509316,-716.06783988,0.00018996,2]
[379138115,1755155509494,-2448.94216012,0.00018996,2]
[379138116,1755155509504,-658.62,0.00018996,2]
[379138117,1755155509513,-460.0,0.00018996,2]
[379138118,1755155509523,-901.56,0.00018996,2]
[379138119,1755155509532,-460.0,0.00018996,2]
[379138120,1755155509541,-2353.97,0.00018996,2]
[379138121,1755155509553,-698.69,0.00018996,2]
[379138122,1755155509565,-546.79,0.00018996,2]
[379138123,1755155509574,-473.16,0.00018996,2]
[379138124,1755155509583,-518.07,0.00018996,2]
[379138125,1755155509593,-1020.86,0.00018996,2]
[379138126,1755155509603,-2691.97,0.00018996,2]
[379138127,1755155509612,-650.89,0.00018996,2]
[379138128,1755155509621,-460.0,0.00018996,2]
[379138129,1755155509630,-460.0,0.00018996,2]
[379138130,1755155509639,-753.88,0.00018996,2]
[379138131,1755155509649,-1246.85,0.00018996,2]
[379138132,1755155509658,-624.47,0.00018996,2]
[379138133,1755155509667,-460.0,0.00018996,2]
[379138134,1755155509677,-460.0,0.00018996,2]
[379138135,1755155509686,-460.0,0.00018996,2]
[379138136,1755155509696,-4523.35,0.00018996,2]
[379138137,1755155509705,-684.24,0.00018996,2]
[379138138,1755155509715,-2908.35,0.00018996,2]
[379138139,1755155509724,-460.0,0.00018996,2]
[379138140,1755155509734,-935.09,0.00018996,2]
[379138141,1755155509743,-460.0,0.00018996,2]
[379138142,1755155509753,-460.0,0.00018996,2]
[379138143,1755155509762,-527.87,0.00018996,2]
[379138144,1755155509772,-1312.88,0.00018996,2]
[379138145,1755155509782,-429.14012497,0.00018997,2]
[379138146,1755155509791,-460.0,0.00018997,2]
[379138147,1755155509800,-1589.06,0.00018997,2]
[379138148,1755155509809,-554.53,0.00018997,2]
[379138149,1755155509818,-460.0,0.00018997,2]
[379138150,1755155509827,-460.0,0.00018997,2]
[379138151,1755155509836,-460.0,0.00018997,2]
[379138152,1755155509845,-460.0,0.00018997,2]
[379138153,1755155509855,-571.76771491,0.00018997,2]
[379138154,1755155509912,460.0,0.00018174,2]
[379138155,1755155509991,-545.75435216,0.00018448,2]
[379138156,1755155510001,-100.01228509,0.00018997,2]
[379138157,1755155510010,-460.0,0.00018997,2]
[379138158,1755155510020,-151.0,0.00018997,2]
[379138159,1755155510029,-460.0,0.00018997,2]
[379138160,1755155510038,-868.63,0.00018997,2]
[379138161,1755155510047,-1158.5,0.00018997,2]
[379138162,1755155510056,-174.62,0.00018997,2]
[379138163,1755155510065,-857.42,0.00018997,2]
[379138164,1755155510074,-460.0,0.00018997,2]
[379138165,1755155510083,-460.0,0.00018997,2]
[379138166,1755155510092,-1894.56,0.00018997,2]
[379138167,1755155510100,-151.0,0.00018997,2]
[379138168,1755155510109,-1346.19,0.00018997,2]
[379138169,1755155510118,-1301.0,0.00018997,2]
[379138170,1755155510127,-460.0,0.00018997,2]
[379138171,1755155510136,-460.0,0.00018997,2]
[379138172,1755155510145,-460.0,0.00018997,2]
[379138173,1755155510154,-151.0,0.00018997,2]
[379138174,1755155510163,-434.27082362,0.00018997,2]
[379138175,1755155510175,-960.61917638,0.00018997,2]
[379138176,1755155510184,-981.34,0.00018997,2]
[379138177,1755155510195,-460.0,0.00018997,2]
[379138178,1755155510205,-460.0,0.00018997,2]
[379138179,1755155510214,-460.0,0.00018997,2]
[379138180,1755155510223,-751.3818497,0.00018997,2]
[379138181,1755155510373,-368.7681503,0.00018997,2]
[379138182,1755155510407,-463.99527087,0.00018997,2]
[379138183,1755155510416,-460.0,0.00018997,2]
[379138184,1755155510426,-557.81686535,0.00018997,2]
[379138185,1755155510437,-234.89313465,0.00018997,2]
[379138186,1755155510448,-460.0,0.00018998,2]
[379138187,1755155510457,-460.0,0.00018998,2]
[379138188,1755155510466,-460.0,0.00018998,2]
[379138189,1755155510475,-460.0,0.00018998,2]
[379138190,1755155510484,-460.0,0.00018998,2]
[379138191,1755155510494,-460.0,0.00018998,2]
[379138192,1755155510503,-460.0,0.00018998,2]
[379138193,1755155510513,-460.0,0.00018998,2]
[379138194,1755155510522,-460.0,0.00018998,2]
[379138195,1755155510531,-460.0,0.00018998,2]
[379138196,1755155510540,-478.89,0.00018998,2]
[379138197,1755155510549,-460.0,0.00018998,2]
[379138198,1755155510559,-494.47,0.00018998,2]
[379138199,1755155510569,-1250.11,0.00018998,2]
[379138200,1755155510578,-460.0,0.00018998,2]
[379138201,1755155510588,-523.5,0.00018998,2]
[379138202,1755155510598,-475.61366461,0.00018998,2]
[379138203,1755155510607,-460.0,0.00018998,2]
[379138204,1755155510618,-560.45,0.00018998,2]
[379138205,1755155510627,-2260.42,0.00018998,2]
[379138206,1755155510636,-460.0,0.00018998,2]
[379138207,1755155510646,-1073.34,0.00018998,2]
[379138208,1755155510656,-533.97,0.00018998,2]
[379138209,1755155510666,-460.0,0.00018998,2]
[379138210,1755155510675,-460.0,0.00018998,2]
[379138211,1755155510685,-460.0,0.00018998,2]
[379138212,1755155510694,-151.0,0.00018998,2]
[379138213,1755155510705,-794.93,0.00018998,2]
[379138214,1755155510714,-460.0,0.00018998,2]
[379138215,1755155510723,-460.0,0.00018998,2]
[379138216,1755155510733,-460.0,0.00018998,2]
[379138217,1755155510742,-620.72,0.00018998,2]
[379138218,1755155510751,-1090.39,0.00018998,2]
[379138219,1755155510760,-578.8,0.00018998,2]
[379138220,1755155510769,-1078.96,0.00018998,2]
[379138221,1755155510778,-460.0,0.00018998,2]
[379138222,1755155510788,-754.77,0.00018998,2]
[379138223,1755155510797,-460.0,0.00018998,2]
[379138224,1755155510807,-1515.38,0.00018998,2]
[379138225,1755155510816,-662.12,0.00018998,2]
[379138226,1755155510826,-928.86,0.00018998,2]
[379138227,1755155510835,-460.0,0.00018998,2]
[379138228,1755155510844,-460.0,0.00018998,2]
[379138229,1755155510853,-898.83,0.00018998,2]
[379138230,1755155510863,-460.0,0.00018998,2]
[379138231,1755155510876,-460.0,0.00018998,2]
[379138232,1755155510887,-460.0,0.00018998,2]
[379138233,1755155510896,-460.0,0.00018998,2]
[379138234,1755155510905,-460.0,0.00018998,2]
[379138235,1755155510915,-460.0,0.00018998,2]
[379138236,1755155510925,-826.18,0.00018998,2]
[379138237,1755155510934,-583.5,0.00018998,2]
[379138238,1755155510944,-230.12943331,0.00018998,2]
[379138239,1755155510954,-556.98,0.00018998,2]
[379138240,1755155510963,-460.0,0.00018998,2]
[379138241,1755155510973,-460.0,0.00018998,2]
[379138242,1755155510982,-460.0,0.00018998,2]
[379138243,1755155510991,-460.0,0.00018998,2]
[379138244,1755155511001,-460.0,0.00018998,2]
[379138245,1755155511010,-875.16,0.00018998,2]
[379138246,1755155511019,-460.0,0.00018998,2]
[379138247,1755155511028,-1311.61,0.00018998,2]
[379138248,1755155511039,-461.66,0.00018998,2]
[379138249,1755155511048,-594.51275574,0.00018998,2]
[379138250,1755155511057,-460.0,0.00018998,2]
[379138251,1755155511066,-460.0,0.00018998,2]
[379138252,1755155511075,-460.0,0.00018998,2]
[379138253,1755155511085,-460.0,0.00018998,2]
[379138254,1755155511094,-1278.82,0.00018998,2]
[379138255,1755155511103,-460.0,0.00018998,2]
[379138256,1755155511112,-1576.09,0.00018998,2]
[379138257,1755155511121,-460.0,0.00018998,2]
[379138258,1755155511130,-1114.02,0.00018998,2]
[379138259,1755155511139,-460.0,0.00018998,2]
[379138260,1755155511154,-460.0,0.00018998,2]
[379138261,1755155511163,-549.88,0.00018998,2]
[379138262,1755155511172,-460.0,0.00018998,2]
[379138263,1755155511182,-996.06,0.00018998,2]
[379138264,1755155511193,-869.96,0.00018998,2]
[379138265,1755155511205,-381.11883214,0.00018999,2]
[379138266,1755155511214,-72.26661053,0.00018999,2]
[379138268,1755155514953,460.0,0.00018174,2]
[379138269,1755155516746,1623.80909386,0.00018174,2]
[379138270,1755155516782,1013.70090614,0.00018174,2]
[379138272,1755155517931,802.02,0.00018174,2]
[379138275,1755155525926,163.0,8.3e-07,2]
[379138276,1755155525962,474.47894758,0.00018174,2]
[379138277,1755155528562,460.0,0.00018174,2]
[379138278,1755155529231,7086.80014628,0.00018076,2]
[379138279,1755155529256,10000.0,0.00018076,2]
[379138280,1755155529281,10000.0,0.00018076,2]
[379138281,1755155529306,10000.0,0.00018076,2]
[379138282,1755155529331,10000.0,0.00018076,2]
[379138283,1755155529355,10000.0,0.00018076,2]
[379138284,1755155529386,10000.0,0.00018076,2]
[379138285,1755155529411,10000.0,0.00018076,2]
[379138286,1755155529434,1177.12028604,0.00018076,2]
[379138287,1755155530058,460.0,0.00018174,2]
[379138288,1755155531495,527.63707465,0.00018174,2]
[379138290,1755155540391,3252.58,0.00018174,2]
[379138291,1755155542287,461.02434656,0.00018174,2]
[379138292,1755155543999,460.0,0.00018174,2]
[379138293,1755155544160,460.0,0.00018174,2]
[379138294,1755155544191,460.0,0.00018174,2]
[379138295,1755155545811,460.0,0.00018174,2]
[379138296,1755155547911,460.0,0.00018174,2]
[379138300,1755155564859,460.0,0.00018174,2]
[379138301,1755155567438,460.0,0.00018174,2]
[379138302,1755155571851,582.24,0.00018174,2]
[379138303,1755155571880,319.39829275,0.00018174,2]
[379138304,1755155571903,237.43118329,0.00018174,2]
[379138307,1755155575836,717.59,0.00018174,2]
[379138308,1755155577429,548.85,0.00018174,2]
[379138309,1755155590157,166.26954,0.00017368,2]
[379138310,1755155592507,1900.0,0.0001778,2]
[379138311,1755155593729,460.0,0.00018174,2]
[379138312,1755155594807,751.3,0.00018174,2]
[379138313,1755155605488,344.995875,0.00018031,2]